[Event "Turkish Youth Championship 2024"]
[Site "Samsun"]
[Date "2024.05.24"]
[Round "9"]
[White "Toptal, Uygar Altan"]
[Black "Bulut, Kemal"]
[Result "1-0"]
[ECO "B76"]
[WhiteElo "1679"]
[BlackElo "1848"]
[Annotator "NA RC"]
[PlyCount "129"]
[EventDate "2024.05.18"]
[EventType "swiss"]
[EventCountry "TUR"]
[SourceTitle "playchess.com"]
[Source "ChessBase"]
[SourceQuality "1"]
[TimeControl "5400+30"]

1. e4 {[%emt 0:01:00]} c5 {[%emt 0:04:00]} 2. Nf3 {[%emt 0:00:30]} d6 {[%emt 0:00:30]} 3. d4 {[%emt 0:00:00]} cxd4 {[%emt 0:00:30]} 4. Nxd4 {[%emt 0:00:00]} Nf6 {[%emt 0:00:30]} 5. Nc3 {[%emt 0:00:00]} g6 {[%emt 0:00:30]} 6. Be3 {[%emt 0:00:00]} Bg7 {[%emt 0:00:00]} 7. f3 {[%emt 0:00:00]} Nc6 {[%emt 0:00:00]} 8. Qd2 {[%emt 0:00:00]} O-O {[%emt 0:03:30]} 9. O-O-O {[%emt 0:00:30]} d5 {[%emt 0:00:30]} 10. exd5 {[%emt 0:00:30]} Nxd5 {[%emt 0:00:30]} 11. Nxc6 {[%emt 0:00:30]} bxc6 {[%emt 0:00:30]} 12. Bd4 {[%emt 0:00:00]} Bxd4 {[%emt 0:00:00]} 13. Qxd4 {[%emt 0:00:00]} Qb6 {[%emt 0:00:00]} 14. Na4 {[%emt 0:00:30]} Qc7 {[%emt 0:00:30]} 15. Bc4 {[%emt 0:02:30]} Rd8 {[%emt 0:05:30]} 16. Nc5 {[%emt 0:07:30]} Bf5 {[%emt 0:01:30]} 17. Bb3 {[%emt 0:04:30]} Nb6 {[%emt 0:03:30]} 18. Qe3 {[%emt 0:03:30]} Rxd1+ {[%emt 0:00:30]} 19. Rxd1 {[%emt 0:00:00]} Qxh2 {[%emt 0:00:30]} 20. Qxe7 {[%emt 0:00:00]} Nd5 {[%emt 0:05:30]} 21. Bxd5 {[%emt 0:20:30]} cxd5 {[%emt 0:00:30]} 22. Qe2 {[%emt 0:02:30]} Qf4+ {[%emt 0:08:30]} 23. Kb1 {[%emt 0:02:30]} Qd6 {[%emt 0:10:30]} 24. Nb3 {[%emt 0:04:30]} g5 {[%emt 0:06:30]} 25. Qd2 {[%emt 0:01:30]} Qg6 {[%emt 0:01:30]} 26. g4 {[%emt 0:04:30]} Be6 {[%emt 0:00:00]} 27. Nd4 {[%emt 0:00:30]} Bd7 {[%emt 0:03:00]} 28. Rh1 {[%emt 0:04:30]} Rc8 {[%emt 0:07:30]} 29. Rh5 {[%emt 0:03:30]} h6 {[%emt 0:00:00]} 30. Rh1 {[%emt 0:00:30]} Qf6 {[%emt 0:03:00]} 31. Rd1 {[%emt 0:02:30]} Rc4 {[%emt 0:03:30]} 32. b3 {[%emt 0:02:30]} Rc8 {[%emt 0:00:30]} 33. Qa5 {[%emt 0:00:30]} Qd6 {[%emt 0:18:14]} 34. Qxa7 {[%emt 0:01:30]} Rc7 {[%emt 0:03:17]} 35. Qa5 {[%emt 0:01:30]} Rc8 {[%emt 0:02:08]} 36. Kb2 {[%emt 0:04:30]} Qe5 {[%emt 0:01:43]} 37. Qa6 {[%emt 0:03:30]} Be6 {[%emt 0:02:45]} 38. Qd3 {[%emt 0:01:30]} Ra8 {[%emt 0:02:43]} 39. a4 {[%emt 0:00:30]} Bd7 {[%emt 0:00:11]} 40. Qe2 {[%emt 0:01:30]} Qf6 {[%emt 0:00:49]} 41. Qd3 {[%emt 0:02:30]} Rb8 {[%emt 0:00:22]} 42. Ka2 {[%emt 0:00:30]} Qb6 {[%emt 0:00:28]} 43. Qc3 {[%emt 0:00:30]} Rc8 {[%emt 0:00:42]} 44. Qd3 {[%emt 0:01:30]} Ra8 {[%emt 0:00:15]} 45. Kb2 {[%emt 0:00:30]} Rxa4 {[%emt 0:00:50]} 46. Nf5 {[%emt 0:00:30]} Ra5 {[%emt 0:03:41]} 47. Ne7+ {[%emt 0:01:30]} Kf8 {[%emt 0:00:08]} 48. Nxd5 {[%emt 0:00:00]} Qc5 {[%emt 0:00:28]} 49. b4 {[%emt 0:01:00]} Rb5 {[%emt 0:00:10]} 50. c3 {[%emt 0:00:30]} Bc6 {[%emt 0:02:05]} 51. Nc7 {[%emt 0:01:36]} Rb7 {[%emt 0:00:07]} 52. Rd2 {[%emt 0:01:23]} Qe7 {[%emt 0:01:14]} 53. Nd5 {[%emt 0:00:17]} Qe5 {[%emt 0:00:19]} 54. Qd4 {[%emt 0:01:18]} Qxd4 {[%emt 0:01:02]} 55. Rxd4 {[%emt 0:00:10]} Rd7 {[%emt 0:00:00]} 56. c4 {[%emt 0:00:29]} Bxd5 {[%emt 0:00:00]} 57. Rxd5 {[%emt 0:00:00]} Rxd5 {[%emt 0:00:21]} 58. cxd5 {[%emt 0:00:00]} f5 {[%emt 0:00:00]} 59. gxf5 {[%emt 0:02:28]} h5 {[%emt 0:00:16]} 60. b5 {[%emt 0:00:01]} Ke7 {[%emt 0:00:00]} 61. f6+ {[%emt 0:01:30]} Kxf6 {[%emt 0:00:00]} 62. b6 {[%emt 0:00:04]} Ke5 {[%emt 0:00:23]} 63. b7 {[%emt 0:00:00]} Kxd5 {[%emt 0:00:00]} 64. b8=Q {[%emt 0:00:00]} Kd4 {[%emt 0:00:00]} 65. Qg3 {[%emt 0:00:00]} 1-0

[Event "Turkish Youth Championship 2024"]
[Site "Samsun"]
[Date "2024.05.24"]
[Round "9"]
[White "Cecen, Kuay Kam"]
[Black "Ozmen, Sevket Mert"]
[Result "0-1"]
[ECO "B34"]
[WhiteElo "1642"]
[BlackElo "1749"]
[Annotator "NA RC"]
[PlyCount "164"]
[EventDate "2024.05.18"]
[EventType "swiss"]
[EventCountry "TUR"]
[SourceTitle "playchess.com"]
[Source "ChessBase"]
[SourceQuality "1"]
[TimeControl "5400+30"]

1. e4 {[%emt 0:01:00]} c5 {[%emt 0:01:00]} 2. Nf3 {[%emt 0:00:30]} Nc6 {[%emt 0:00:30]} 3. d4 {[%emt 0:00:30]} cxd4 {[%emt 0:00:30]} 4. Nxd4 {[%emt 0:00:30]} g6 {[%emt 0:00:30]} 5. Nxc6 {[%emt 0:00:30]} bxc6 {[%emt 0:00:00]} 6. Qd4 {[%emt 0:00:00]} Nf6 {[%emt 0:00:00]} 7. e5 {[%emt 0:00:00]} Nd5 {[%emt 0:00:00]} 8. Nc3 {[%emt 0:00:00]} Nxc3 {[%emt 0:01:00]} 9. e6 {[%emt 0:03:00]} f6 {[%emt 0:01:30]} 10. exd7+ {[%emt 0:00:30]} Bxd7 {[%emt 0:01:30]} 11. Qxc3 {[%emt 0:00:30]} e5 {[%emt 0:01:30]} 12. Bc4 {[%emt 0:12:30]} Qe7 {[%emt 0:07:30]} 13. O-O {[%emt 0:05:30]} Qb4 {[%emt 0:04:30]} 14. Bd2 {[%emt 0:08:30]} Qxc3 {[%emt 0:09:30]} 15. Bxc3 {[%emt 0:00:30]} Bc5 {[%emt 0:00:30]} 16. Rad1 {[%emt 0:02:30]} O-O-O {[%emt 0:09:30]} 17. b4 {[%emt 0:19:30]} Bb6 {[%emt 0:06:30]} 18. Rd6 {[%emt 0:07:30]} Rhf8 {[%emt 0:02:30]} 19. a4 {[%emt 0:04:30]} Bc7 {[%emt 0:04:30]} 20. Rdd1 {[%emt 0:04:30]} Bf5 {[%emt 0:00:30]} 21. Bb3 {[%emt 0:01:30]} Be4 {[%emt 0:06:30]} 22. a5 {[%emt 0:05:30]} Kb7 {[%emt 0:01:30]} 23. f3 {[%emt 0:03:08]} Bd5 {[%emt 0:01:30]} 24. Ba4 {[%emt 0:00:58]} a6 {[%emt 0:00:30]} 25. Rfe1 {[%emt 0:01:52]} Bd6 {[%emt 0:00:30]} 26. Bd2 {[%emt 0:01:53]} Rd7 {[%emt 0:12:30]} 27. c3 {[%emt 0:03:04]} Rfd8 {[%emt 0:00:30]} 28. Be3 {[%emt 0:01:16]} Bc4 {[%emt 0:06:30]} 29. Bc2 {[%emt 0:05:49]} Be7 {[%emt 0:04:08]} 30. Bb6 {[%emt 0:02:19]} Rxd1 {[%emt 0:01:05]} 31. Rxd1 {[%emt 0:00:09]} Rxd1+ {[%emt 0:00:06]} 32. Bxd1 {[%emt 0:00:02]} c5 {[%emt 0:00:11]} 33. bxc5 {[%emt 0:03:51]} Kc6 {[%emt 0:00:01]} 34. Ba4+ {[%emt 0:00:42]} Bb5 {[%emt 0:00:30]} 35. Bb3 {[%emt 0:00:00]} Bxc5+ {[%emt 0:00:00]} 36. Bxc5 {[%emt 0:00:28]} Kxc5 {[%emt 0:00:00]} 37. Kf2 {[%emt 0:02:03]} Bc6 {[%emt 0:00:03]} 38. Ke3 {[%emt 0:01:31]} Kb5 {[%emt 0:00:03]} 39. Kd3 {[%emt 0:00:55]} Kxa5 {[%emt 0:00:23]} 40. Kc4 {[%emt 0:00:22]} Kb6 {[%emt 0:00:30]} 41. Kb4 {[%emt 0:00:34]} a5+ {[%emt 0:01:09]} 42. Kc4 {[%emt 0:00:21]} Be8 {[%emt 0:00:07]} 43. Bc2 {[%emt 0:00:40]} Bf7+ {[%emt 0:00:40]} 44. Kd3 {[%emt 0:00:34]} Kc5 {[%emt 0:00:05]} 45. Ba4 {[%emt 0:00:21]} Bc4+ {[%emt 0:00:29]} 46. Kc2 {[%emt 0:00:34]} Bf1 {[%emt 0:03:36]} 47. g3 {[%emt 0:00:28]} Bb5 {[%emt 0:00:06]} 48. Bb3 {[%emt 0:00:20]} a4 {[%emt 0:00:02]} 49. Bg8 {[%emt 0:00:59]} h6 {[%emt 0:00:05]} 50. Kb2 {[%emt 0:00:00]} Be2 {[%emt 0:01:40]} 51. f4 {[%emt 0:00:37]} e4 {[%emt 0:00:01]} 52. Bh7 {[%emt 0:00:29]} Bc4 {[%emt 0:00:06]} 53. Bxg6 {[%emt 0:00:39]} e3 {[%emt 0:00:05]} 54. Kc2 {[%emt 0:00:00]} a3 {[%emt 0:00:18]} 55. Bh5 {[%emt 0:00:25]} a2 {[%emt 0:00:34]} 56. Kb2 {[%emt 0:00:06]} Kd6 {[%emt 0:02:04]} 57. Bf3 {[%emt 0:01:14]} Kc5 {[%emt 0:01:37]} 58. h3 {[%emt 0:00:39]} e2 {[%emt 0:01:25]} 59. Bxe2 {[%emt 0:00:36]} Bxe2 {[%emt 0:00:05]} 60. Kxa2 {[%emt 0:00:00]} Bf1 {[%emt 0:01:00]} 61. h4 {[%emt 0:00:00]} h5 {[%emt 0:00:32]} 62. Kb2 {[%emt 0:01:06]} f5 {[%emt 0:00:36]} 63. Kc2 {[%emt 0:00:19]} Kc4 {[%emt 0:00:43]} 64. Kd2 {[%emt 0:00:11]} Bh3 {[%emt 0:00:00]} 65. Kc2 {[%emt 0:00:10]} Bg2 {[%emt 0:00:00]} 66. Kd2 {[%emt 0:00:09]} Be4 {[%emt 0:00:00]} 67. Ke3 {[%emt 0:00:19]} Bb1 {[%emt 0:00:00]} 68. Kd2 {[%emt 0:00:12]} Bd3 {[%emt 0:00:09]} 69. Ke3 {[%emt 0:00:16]} Kxc3 {[%emt 0:00:07]} 70. Kf3 {[%emt 0:00:52]} Kd2 {[%emt 0:00:13]} 71. Kf2 {[%emt 0:00:00]} Be2 {[%emt 0:00:29]} 72. Kg1 {[%emt 0:00:09]} Ke3 {[%emt 0:00:14]} 73. Kh2 {[%emt 0:00:27]} Bg4 {[%emt 0:00:26]} 74. Kg2 {[%emt 0:00:11]} Ke2 {[%emt 0:00:24]} 75. Kh1 {[%emt 0:00:37]} Kf2 {[%emt 0:00:06]} 76. Kh2 {[%emt 0:00:00]} Be2 {[%emt 0:01:06]} 77. Kh3 {[%emt 0:00:03]} Bf1+ {[%emt 0:00:22]} 78. Kh2 {[%emt 0:00:06]} Kf3 {[%emt 0:00:13]} 79. Kg1 {[%emt 0:00:16]} Kxg3 {[%emt 0:00:21]} 80. Kxf1 {[%emt 0:00:19]} Kxh4 {[%emt 0:00:46]} 81. Kf2 {[%emt 0:00:29]} Kg4 {[%emt 0:03:10]} 82. Ke3 {[%emt 0:00:29]} Kg3 {[%emt 0:00:08]} 0-1

[Event "Turkish Youth Championship 2024"]
[Site "Samsun"]
[Date "2024.05.24"]
[Round "9"]
[White "Duygulu, Ugur"]
[Black "Buyuk, Eymen Eren"]
[Result "1/2-1/2"]
[ECO "C02"]
[WhiteElo "1585"]
[BlackElo "1999"]
[Annotator "RC"]
[PlyCount "98"]
[EventDate "2024.05.18"]
[EventType "swiss"]
[EventCountry "TUR"]
[SourceTitle "playchess.com"]
[Source "ChessBase"]
[SourceQuality "1"]
[TimeControl "5400+30"]

1. e4 {[%emt 0:01:00]} e6 {[%emt 0:01:00]} 2. d4 {[%emt 0:00:00]} d5 {[%emt 0:00:30]} 3. e5 {[%emt 0:00:00]} c5 {[%emt 0:00:00]} 4. c3 {[%emt 0:00:30]} Nc6 {[%emt 0:00:00]} 5. Nf3 {[%emt 0:00:30]} Qb6 {[%emt 0:00:30]} 6. Na3 {[%emt 0:00:00]} cxd4 {[%emt 0:00:30]} 7. cxd4 {[%emt 0:01:00]} Bb4+ {[%emt 0:00:30]} 8. Bd2 {[%emt 0:00:00]} Bd7 {[%emt 0:00:30]} 9. Nc2 {[%emt 0:01:00]} Bxd2+ {[%emt 0:01:30]} 10. Qxd2 {[%emt 0:00:30]} Nge7 {[%emt 0:00:00]} 11. Bd3 {[%emt 0:02:30]} h6 {[%emt 0:03:00]} 12. O-O {[%emt 0:02:30]} Rc8 {[%emt 0:01:30]} 13. b4 {[%emt 0:05:30]} O-O {[%emt 0:01:30]} 14. a4 {[%emt 0:04:30]} a6 {[%emt 0:01:30]} 15. Rfb1 {[%emt 0:05:30]} Qc7 {[%emt 0:16:30]} 16. Ne3 {[%emt 0:09:30]} Na7 {[%emt 0:02:30]} 17. Ra3 {[%emt 0:03:30]} Ng6 {[%emt 0:06:30]} 18. b5 {[%emt 0:22:30]} axb5 {[%emt 0:03:30]} 19. axb5 {[%emt 0:00:30]} b6 {[%emt 0:00:30]} 20. Qa2 {[%emt 0:00:30]} Nxb5 {[%emt 0:13:30]} 21. Bxb5 {[%emt 0:00:00]} Bxb5 {[%emt 0:00:30]} 22. Rxb5 {[%emt 0:00:00]} Qc1+ {[%emt 0:00:30]} 23. Nf1 {[%emt 0:00:30]} Rc2 {[%emt 0:00:30]} 24. Qa1 {[%emt 0:01:30]} Nf4 {[%emt 0:00:00]} 25. Qxc1 {[%emt 0:01:30]} Ne2+ {[%emt 0:00:00]} 26. Kh1 {[%emt 0:00:30]} Rxc1 {[%emt 0:00:30]} 27. N3d2 {[%emt 0:00:30]} Nxd4 {[%emt 0:00:30]} 28. Rxb6 {[%emt 0:00:30]} Rfc8 {[%emt 0:00:00]} 29. g3 {[%emt 0:05:30]} Nc2 {[%emt 0:02:00]} 30. Rab3 {[%emt 0:02:30]} Ne1 {[%emt 0:02:30]} 31. Rb8 {[%emt 0:02:30]} Rxb8 {[%emt 0:01:30]} 32. Rxb8+ {[%emt 0:00:30]} Kh7 {[%emt 0:00:00]} 33. Rb3 {[%emt 0:01:30]} d4 {[%emt 0:00:00]} 34. Kg1 {[%emt 0:02:30]} Rc3 {[%emt 0:01:30]} 35. Rb4 {[%emt 0:06:30]} Nd3 {[%emt 0:01:30]} 36. Rxd4 {[%emt 0:00:47]} Nxe5 {[%emt 0:00:30]} 37. Re4 {[%emt 0:00:30]} Nd7 {[%emt 0:00:00]} 38. Ne3 {[%emt 0:01:56]} g5 {[%emt 0:00:00]} 39. Nf3 {[%emt 0:06:06]} Kg7 {[%emt 0:00:30]} 40. Rc4 {[%emt 0:00:46]} Rxc4 {[%emt 0:06:30]} 41. Nxc4 {[%emt 0:00:05]} f5 {[%emt 0:00:30]} 42. Nfe5 {[%emt 0:01:51]} Nc5 {[%emt 0:01:30]} 43. g4 {[%emt 0:00:31]} fxg4 {[%emt 0:01:30]} 44. Nxg4 {[%emt 0:00:08]} h5 {[%emt 0:00:00]} 45. Nge3 {[%emt 0:01:32]} Kf6 {[%emt 0:00:00]} 46. Nd2 {[%emt 0:00:17]} g4 {[%emt 0:00:30]} 47. Kg2 {[%emt 0:03:19]} Kg5 {[%emt 0:00:30]} 48. Nec4 {[%emt 0:00:20]} Kf4 {[%emt 0:00:30]} 49. Ne3 {[%emt 0:01:43]} Ke5 {[%emt 0:00:30]} 1/2-1/2

[Event "Turkish Youth Championship 2024"]
[Site "Samsun"]
[Date "2024.05.24"]
[Round "9"]
[White "Kesici, Eyup Can"]
[Black "Kalyoncu, Beren"]
[Result "1/2-1/2"]
[ECO "B13"]
[WhiteElo "1539"]
[BlackElo "1737"]
[Annotator "NA RC"]
[PlyCount "107"]
[EventDate "2024.05.18"]
[EventType "swiss"]
[EventCountry "TUR"]
[SourceTitle "playchess.com"]
[Source "ChessBase"]
[SourceQuality "1"]
[TimeControl "5400+30"]

1. d4 {[%emt 0:12:00]} d5 {[%emt 0:01:00]} 2. e3 {[%emt 0:00:30]} Nf6 {[%emt 0:00:30]} 3. Bd3 {[%emt 0:00:30]} c5 {[%emt 0:00:30]} 4. c3 {[%emt 0:00:00]} cxd4 {[%emt 0:00:30]} 5. exd4 {[%emt 0:00:00]} g6 {[%emt 0:00:30]} 6. Nd2 {[%emt 0:00:30]} Bg7 {[%emt 0:00:30]} 7. f4 {[%emt 0:00:00]} Bf5 {[%emt 0:01:30]} 8. Qe2 {[%emt 0:02:00]} Bxd3 {[%emt 0:00:30]} 9. Qxd3 {[%emt 0:00:00]} e6 {[%emt 0:00:30]} 10. Qb5+ {[%emt 0:03:00]} Qd7 {[%emt 0:00:30]} 11. Qxd7+ {[%emt 0:00:30]} Nbxd7 {[%emt 0:02:30]} 12. Ngf3 {[%emt 0:00:30]} O-O {[%emt 0:00:30]} 13. O-O {[%emt 0:00:30]} b5 {[%emt 0:01:30]} 14. a4 {[%emt 0:02:30]} a6 {[%emt 0:01:30]} 15. Ne5 {[%emt 0:00:30]} Rfc8 {[%emt 0:02:30]} 16. Nd3 {[%emt 0:04:30]} Bf8 {[%emt 0:02:30]} 17. axb5 {[%emt 0:05:30]} axb5 {[%emt 0:00:30]} 18. Rxa8 {[%emt 0:00:30]} Rxa8 {[%emt 0:00:30]} 19. Re1 {[%emt 0:00:30]} b4 {[%emt 0:00:30]} 20. Ne5 {[%emt 0:00:30]} Rc8 {[%emt 0:00:30]} 21. Nxd7 {[%emt 0:00:30]} Nxd7 {[%emt 0:00:30]} 22. Re3 {[%emt 0:00:30]} Nb6 {[%emt 0:12:30]} 23. Kf2 {[%emt 0:32:30]} Na4 {[%emt 0:06:30]} 24. Nb1 {[%emt 0:00:30]} Bd6 {[%emt 0:02:30]} 25. g3 {[%emt 0:03:30]} Rc6 {[%emt 0:08:30]} 26. Ke2 {[%emt 0:01:30]} Bc7 {[%emt 0:00:30]} 27. Kd1 {[%emt 0:00:30]} Kg7 {[%emt 0:09:30]} 28. Kc2 {[%emt 0:00:30]} Ba5 {[%emt 0:05:30]} 29. Kb3 {[%emt 0:03:30]} Nb6 {[%emt 0:00:30]} 30. Nd2 {[%emt 0:03:30]} bxc3 {[%emt 0:05:30]} 31. bxc3 {[%emt 0:00:30]} Nc4 {[%emt 0:00:30]} 32. Nxc4 {[%emt 0:00:30]} Rxc4 {[%emt 0:00:30]} 33. Bd2 {[%emt 0:01:30]} h5 {[%emt 0:00:30]} 34. Re1 {[%emt 0:00:30]} Kf6 {[%emt 0:01:30]} 35. h3 {[%emt 0:00:30]} Kf5 {[%emt 0:00:30]} 36. Re5+ {[%emt 0:00:30]} Kf6 {[%emt 0:00:30]} 37. Re1 {[%emt 0:01:30]} Kf5 {[%emt 0:01:30]} 38. Re5+ {[%emt 0:00:30]} Kf6 {[%emt 0:00:30]} 39. Re1 {[%emt 0:00:00]} Bc7 {[%emt 0:07:30]} 40. g4 {[%emt 0:01:00]} hxg4 {[%emt 0:00:30]} 41. hxg4 {[%emt 0:00:00]} Bd6 {[%emt 0:00:30]} 42. Rh1 {[%emt 0:05:04]} Kg7 {[%emt 0:00:00]} 43. g5 {[%emt 0:01:28]} Rc8 {[%emt 0:01:00]} 44. Kc2 {[%emt 0:00:48]} Ra8 {[%emt 0:02:30]} 45. Kb3 {[%emt 0:02:35]} Ra3+ {[%emt 0:00:00]} 46. Kb2 {[%emt 0:00:26]} Ra8 {[%emt 0:00:00]} 47. Kb3 {[%emt 0:00:34]} Rb8+ {[%emt 0:01:30]} 48. Kc2 {[%emt 0:00:08]} Ra8 {[%emt 0:00:30]} 49. Kb3 {[%emt 0:00:08]} Ra7 {[%emt 0:00:30]} 50. Kb2 {[%emt 0:01:26]} Rb7+ {[%emt 0:00:30]} 51. Kc2 {[%emt 0:00:19]} Ra7 {[%emt 0:00:30]} 52. Kb2 {[%emt 0:00:28]} Bc7 {[%emt 0:01:30]} 53. Kb3 {[%emt 0:01:01]} Bd6 {[%emt 0:00:30]} 54. Kb2 {[%emt 0:00:12]} 1/2-1/2

[Event "Turkish Youth Championship 2024"]
[Site "Samsun"]
[Date "2024.05.24"]
[Round "9"]
[White "Ozer, Yigit Eren"]
[Black "Herdem, Talha"]
[Result "1/2-1/2"]
[ECO "B22"]
[WhiteElo "1519"]
[BlackElo "1844"]
[Annotator "NA RC"]
[PlyCount "92"]
[EventDate "2024.05.18"]
[EventType "swiss"]
[EventCountry "TUR"]
[SourceTitle "playchess.com"]
[Source "ChessBase"]
[SourceQuality "1"]
[TimeControl "5400+30"]

1. e4 {[%emt 0:01:00]} c5 {[%emt 0:01:00]} 2. c3 {[%emt 0:00:30]} Nf6 {[%emt 0:00:30]} 3. e5 {[%emt 0:00:30]} Nd5 {[%emt 0:00:30]} 4. d4 {[%emt 0:00:30]} cxd4 {[%emt 0:00:30]} 5. Nf3 {[%emt 0:00:30]} d6 {[%emt 0:00:30]} 6. Bc4 {[%emt 0:00:30]} e6 {[%emt 0:00:30]} 7. cxd4 {[%emt 0:00:30]} Be7 {[%emt 0:00:30]} 8. O-O {[%emt 0:00:30]} O-O {[%emt 0:00:30]} 9. Qe2 {[%emt 0:00:30]} dxe5 {[%emt 0:00:30]} 10. dxe5 {[%emt 0:00:30]} Bd7 {[%emt 0:00:30]} 11. Rd1 {[%emt 0:00:30]} Bc6 {[%emt 0:00:00]} 12. Nd4 {[%emt 0:00:00]} Bc5 {[%emt 0:00:00]} 13. Nc3 {[%emt 0:00:00]} Nxc3 {[%emt 0:03:30]} 14. bxc3 {[%emt 0:00:00]} Qc7 {[%emt 0:00:30]} 15. Bf4 {[%emt 0:07:00]} a6 {[%emt 0:03:30]} 16. a4 {[%emt 0:03:30]} Re8 {[%emt 0:06:30]} 17. h4 {[%emt 0:04:30]} Nd7 {[%emt 0:01:30]} 18. Bd3 {[%emt 0:05:30]} Bd5 {[%emt 0:08:30]} 19. Qh5 {[%emt 0:18:30]} Nf8 {[%emt 0:02:30]} 20. Rab1 {[%emt 0:07:30]} Ng6 {[%emt 0:15:30]} 21. Bg3 {[%emt 0:01:30]} Rac8 {[%emt 0:07:30]} 22. Qe2 {[%emt 0:02:30]} Be7 {[%emt 0:06:30]} 23. h5 {[%emt 0:09:30]} Nf8 {[%emt 0:00:00]} 24. Rdc1 {[%emt 0:00:30]} Red8 {[%emt 0:08:00]} 25. c4 {[%emt 0:05:30]} Bxg2 {[%emt 0:05:30]} 26. Nb5 {[%emt 0:04:30]} axb5 {[%emt 0:04:30]} 27. cxb5 {[%emt 0:00:30]} Qa5 {[%emt 0:01:30]} 28. Kxg2 {[%emt 0:00:30]} Qxa4 {[%emt 0:00:30]} 29. Ra1 {[%emt 0:03:30]} Qd4 {[%emt 0:03:30]} 30. Rd1 {[%emt 0:00:30]} Qb6 {[%emt 0:00:30]} 31. Qe4 {[%emt 0:01:30]} Rd4 {[%emt 0:00:30]} 32. Qxd4 {[%emt 0:00:30]} Qxd4 {[%emt 0:01:15]} 33. Bxh7+ {[%emt 0:00:30]} Kxh7 {[%emt 0:00:36]} 34. Rxd4 {[%emt 0:00:00]} Kh6 {[%emt 0:01:41]} 35. Rdd1 {[%emt 0:05:24]} Kxh5 {[%emt 0:02:17]} 36. Rac1 {[%emt 0:00:33]} Bc5 {[%emt 0:01:00]} 37. f3 {[%emt 0:00:37]} b6 {[%emt 0:00:41]} 38. Bf2 {[%emt 0:00:22]} Ng6 {[%emt 0:00:14]} 39. Rh1+ {[%emt 0:02:26]} Kg5 {[%emt 0:00:04]} 40. Be3+ {[%emt 0:00:00]} Bxe3 {[%emt 0:00:54]} 41. Rxc8 {[%emt 0:00:00]} Nf4+ {[%emt 0:06:59]} 42. Kh2 {[%emt 0:01:09]} Nd5 {[%emt 0:03:10]} 43. Re1 {[%emt 0:07:24]} Bf4+ {[%emt 0:00:41]} 44. Kg2 {[%emt 0:07:24]} Kf5 {[%emt 0:00:03]} 45. Rf8 {[%emt 0:00:19]} f6 {[%emt 0:00:05]} 46. exf6 {[%emt 0:01:00]} gxf6 {[%emt 0:00:02]} 1/2-1/2